Cogmind - Beta 15 @@@ ROGUE MODE // 2025.06.17 @ 22:21:02 Player: Xcalibur Result: Destroyed by as-04954 with Assembled Heavy Rifle Performance ------------- Evolutions (0) 0 Regions Visited (2) 400 Robots Destroyed (17) 85 Value Destroyed (274) 274 Prototype IDs (0) 0 Alien Tech Used (0) 0 Bonus (0) 0 TOTAL SCORE: 759 Bonus ------- None Cogmind --------- Core Integrity 0/250 Matter 290/300 Energy 157/160 System Corruption 3% Temperature Cool (27) Movement Treading (160) Location -10/Mines Parts ------- > --- POWER (1) -------- Light Nuclear Core > --- PROPULSION (2) --- Light Treads Compact Wheel > --- UTILITY (2) ------ Small Storage Unit Seismic Detector > --- WEAPON (2) ------- (None) > --- INVENTORY (8) ---- Light Treads Light Treads EM Pulse Gun Light Assault Rifle Mining Laser Heavy Explosive Trap Peak State ------------ > --- POWER ------------ Light Nuclear Core > --- PROPULSION ------- Light Treads Wheel > --- UTILITY ---------- Small Storage Unit Seismic Detector > --- WEAPON ----------- Particle Gun Light Assault Rifle > --- INVENTORY -------- Light Ion Engine Light Treads Compact Wheel Compact Wheel Structural Scanner EM Pulse Gun Assault Rifle Mining Laser [Rating: 10] Favorites ----------- Power Light Nuclear Core Engine Light Ion Engine Power Core Light Nuclear Core Propulsion Light Treads Treads Light Treads Wheel Wheel Utility Small Storage Unit Device Seismic Detector Storage Small Storage Unit Weapon Light Assault Rifle Energy Gun Particle Gun Ballistic Gun Light Assault Rifle Build | -11 -10 -10 ------- Run | Yrd Mat Min Slots Evolved . | . . . Power . | . . . Propulsion . | . . . Utility . | . . . Weapon . | . . . Parts Attached 16 | 8 5 3 Power 2 | 1 1 . Engine 1 | 1 . . Core 1 | . 1 . Reactor . | . . . Propulsion 5 | 3 . 2 Treads 3 | 2 . 1 Leg . | . . . Wheel 2 | 1 . 1 Hover . | . . . Flight . | . . . Utility 3 | 2 1 . Device 2 | 1 1 . Storage 1 | 1 . . Processor . | . . . Hackware . | . . . Protection . | . . . Artifact . | . . . Weapon 6 | 2 3 1 Energy Gun 1 | . 1 . Energy Cannon . | . . . Ballistic Gun 5 | 2 2 1 Ballistic Cannon . | . . . Launcher . | . . . Special Weapon . | . . . Impact Weapon . | . . . Slashing Weapon . | . . . Piercing Weapon . | . . . Special Melee Weapon . | . . . Unidentified Prototypes . | . . . Parts Lost 5 | . 1 4 Power 1 | . 1 . Propulsion 2 | . . 2 Utility . | . . . Weapon 2 | . . 2 Highest Loss Streak 4 | . 1 4 To Critical Strikes . | . . . Average Backups 7 | 3 7 7 Power . | . . . Propulsion 3 | 1 3 3 Utility . | . . . Weapon 2 | 1 2 3 Tool/Special . | . . . Unused Backups 6 | . 3 3 Power 1 | . 1 . Propulsion 2 | . 1 1 Utility . | . . . Weapon 3 | . 1 2 Tool/Special . | . . . Average Slot Usage (%) 99 | . 99 98 Engine 4 | . 6 . Core 9 | . 6 14 Treads 15 | . 16 14 Wheel 12 | . 11 14 Device 14 | . 14 14 Storage 14 | . 14 14 Energy Gun 9 | . 6 13 Ballistic Gun 18 | . 21 13 Peak Build Rating 10 | 7 10 10 Average Rating 8 | 5 8 9 On Entrance 5 | . 7 10 Naked Turns . | . . . Heaviest Build 16 | 11 16 16 Greatest Support 40 | 40 40 20 Greatest Overweight (x) 1 | 1 1 1 Average Overweight (x) . | . . . Largest Inventory Capacity 8 | 8 8 8 Average Capacity 7 | 7 8 8 Most Carried 8 | 8 8 8 Average Carried 7 | 3 7 7 Final Capacity 8 | 8 8 8 Final Carried 8 | 6 8 6 Class Distribution -------------------- 78% | Mutant 21% | Scavenger-Mutant Dominant Class ---------------- Mutant | -10/Materials Mutant | -10/Mines Resources | -11 -10 -10 ----------- Run | Yrd Mat Min Matter Collected 469 | 296 99 74 Remotely . | . . . Salvage Created 479 | 117 194 168 Parts 34 | 8 14 12 Haulers Intercepted 1 | . 1 . Recyclers Shooed . | . . . Parts Field Recycled . | . . . Retrieved Matter . | . . . Parts Self-Destructed . | . . . Prevented . | . . . Kills | -11 -10 -10 ------- Run | Yrd Mat Min Combat Hostiles Destroyed 13 | . 5 8 Guns 13 | . 5 8 Classes Destroyed 5 | 2 3 . Tunneler 2 | 2 . . Hauler 1 | . 1 . Recycler 1 | 1 . . Swarmer 9 | . 3 6 Grunt 4 | . 2 2 Best Kill Streak 3 | 3 3 3 Combat Bots Only 3 | . 3 3 Max Kills in Single Turn 1 | 1 1 1 Gunslinging . | . . . Exploded . | . . . Melee . | . . . Uniques/NPCs Destroyed . | . . . Combat | -11 -10 -10 -------- Run | Yrd Mat Min Hostile Shots Fired 84 | . 19 65 Missed 23 | . 3 20 Hits 61 | . 16 45 Melee 2 | . . 2 Projectile 59 | . 16 43 AOE 8 | . . 8 Part Disruptions 1 | . . 1 Damage Taken 909 | . 152 757 Core 253 | . 20 233 Absorbed by Shields . | . . . Core Remaining (%) 100 | 100 . . Volleys Fired 48 | 8 23 17 Largest 2 | 2 2 2 Hottest 85 | 40 85 85 Shots Fired 96 | 16 46 34 Gun 96 | 16 46 34 Cannon . | . . . Launcher . | . . . Special . | . . . Kinetic 70 | 16 37 17 Thermal 26 | . 9 17 Explosive . | . . . Electromagnetic . | . . . Robot Hit Streak 8 | 5 8 4 Robot Miss Streak 5 | 1 4 5 Penetration Max . | . . . Secondary Targets 4 | . 1 3 Max Gunslinging Chain 1 | . 1 1 Shots Hit Robots 57 | 12 28 17 Core Hits 29 | 6 13 10 Critical Kills . | . . . Critical Parts Destroyed . | . . . Critical Strikes . | . . . Melee Attacks . | . . . Impact . | . . . Slashing . | . . . Piercing . | . . . Sneak Attacks . | . . . Combat Hostiles . | . . . Follow-up Attacks . | . . . Damage Inflicted 670 | 101 293 276 Guns 670 | 101 293 276 Cannons . | . . . Explosions . | . . . Melee . | . . . Ramming . | . . . Kinetic 383 | 101 184 98 Thermal 287 | . 109 178 Explosive . | . . . Electromagnetic . | . . . Impact . | . . . Slashing . | . . . Piercing . | . . . Highest Corruption 3 | . . 3 Average Corruption 3 | . . 3 Corruption Purged . | . . . Corruption Blocked . | . . . Overload Shots . | . . . Overflow Damage . | . . . Projectiles . | . . . Explosions . | . . . Melee . | . . . Knockbacks . | . . . Impact . | . . . Kinetic . | . . . Secondary . | . . . Self-Inflicted Damage . | . . . Shots . | . . . Rammed . | . . . Targets Rammed . | . . . Kicked . | . . . Crushed . | . . . Highest Temperature 198 | . 186 198 Average Temperature 82 | . 68 90 Received Heat Transfer 227 | . 33 194 Siege Activations . | . . . Martial Activations . | . . . Shielding Activations . | . . . Robots Disrupted . | . . . Combat Hostiles . | . . . Robots Corrupted . | . . . Combat Hostiles . | . . . Parts Fried . | . . . Impact Corruptions . | . . . Robots Melted . | . . . Combat Hostiles . | . . . Parts Melted . | . . . Heat Transferred 703 | . 259 444 Parts Sabotaged . | . . . Parts Stolen . | . . . Parts Stripped . | . . . Power Chain Reactions . | . . . Alert | -11 -10 -10 ------- Run | Yrd Mat Min Maximum Alert Level . | . . . Low Security (%) 100 | 100 100 100 Level 1 . | . . . Level 2 . | . . . Level 3 . | . . . Level 4 . | . . . Level 5 . | . . . High Security . | . . . Max Security . | . . . Peak Influence 120 | 10 80 120 Initial . | . . . Average 42 | . 26 84 Influence Increases 362 | 15 127 220 Destroy 0b10 Robot/C 260 | . 100 160 Destroy 0b10 Robot/NC 20 | 15 5 . Destroy Leader 52 | . 22 30 Lose Combat Pursuer 30 | . . 30 Influence Decreases 302 | 15 127 160 Time Decay 252 | 15 117 120 Lost Part 50 | . 10 40 Squads Dispatched 1 | . 1 . Investigation . | . . . Extermination . | . . . Reinforcement 1 | . 1 . Assault . | . . . Garrison . | . . . Intercept . | . . . Searches Triggered . | . . . Construction Impeded . | . . . Haulers Reinforced . | . . . Active Scanning Responses . | . . . Cargo Convoy Interrupts . | . . . Stealth | -11 -10 -10 --------- Run | Yrd Mat Min Distress Signals . | . . . Communications Jammed . | . . . Distress Signals . | . . . Times Spotted 31 | . 8 23 Peak Tracking Total 14 | . 3 14 Tactical Retreats 1 | . . 1 Traps | -11 -10 -10 ------- Run | Yrd Mat Min Traps Triggered . | . . . Indirectly . | . . . Trap Hack Attempts . | . . . Triggered . | . . . Disarmed . | . . . Reprogrammed . | . . . Reused . | . . . Traps Extracted . | . . . Installed . | . . . Triggered . | . . . Most Traps Carried 1 | . . 1 Machines | -11 -10 -10 ---------- Run | Yrd Mat Min Machines Disabled . | . . . Max in Single Turn . | . . . Machines Repaired . | . . . Machines Dismantled . | . . . Machines Sabotaged . | . . . Overloaded Fab Kills . | . . . Hacking | -11 -10 -10 --------- Run | Yrd Mat Min Machines Accessed 3 | . 2 1 Terminals 3 | . 2 1 Fabricators . | . . . Repair Stations . | . . . Recycling Units . | . . . Scanalyzers . | . . . Garrison Access . | . . . Total Hacks 7 | . 6 1 Successful 3 | . 2 1 Failed 4 | . 4 . Catastrophic . | . . . Database Lockouts . | . . . Manual 5 | . 5 . Terminals 7 | . 6 1 Fabricators . | . . . Repair Stations . | . . . Recycling Units . | . . . Scanalyzers . | . . . Garrison Access . | . . . Terminal Hacks 1 | . . 1 Zone Layout 1 | . . 1 Fabricator Hacks . | . . . Repair Station Hacks . | . . . Recycling Unit Hacks . | . . . Scanalyzer . | . . . Garrison Access Hacks . | . . . Unauthorized Hacks 2 | . 2 . Terminals 2 | . 2 . Botnet 2 | . 2 . Fabricators . | . . . Repair Stations . | . . . Recycling Units . | . . . Scanalyzers . | . . . Garrison Access . | . . . Data Cores Recovered . | . . . Used . | . . . Hacking Detections 2 | . 2 . Full Trace Events . | . . . Feedback Events . | . . . Feedback Blocked . | . . . Robot Schematics Acquired . | . . . Robots Built . | . . . Authchips . | . . . Time . | . . . Total Robot Build Rating . | . . . Part Schematics Acquired . | . . . Parts Built . | . . . Authchips . | . . . Time . | . . . Total Part Build Rating . | . . . Parts Repaired . | . . . Time . | . . . Parts Recycled . | . . . Recycled Matter . | . . . Retrieved Matter . | . . . Retrieved Components . | . . . Parts Scanalyzed . | . . . Part Schematics Acquired . | . . . Parts Damaged . | . . . Bothacking | -11 -10 -10 ------------ Run | Yrd Mat Min Used RIF Installer . | . . . Robots Hacked . | . . . Non-combat . | . . . Combat . | . . . Robot Hacks Applied . | . . . Relay Couplers Released . | . . . Fabnet Peak Effective % . | . . . Robots Rewired . | . . . Allies Hacked . | . . . Hacks Repelled . | . . . Allies | -11 -10 -10 -------- Run | Yrd Mat Min Total Allies . | . . . Largest Group . | . . . Highest-Rated Group . | . . . Highest-Rated Ally . | . . . Total Orders . | . . . Ally Attacks . | . . . Total Damage . | . . . Kills . | . . . Allies Corrupted . | . . . Allies Melted . | . . . Intel | -11 -10 -10 ------- Run | Yrd Mat Min Active Infowar (turns) 677 | 24 394 259 Structural 4 | . 4 . Seismic 673 | 24 390 259 Robot Analysis Total . | . . . Derelict Logs Recovered . | . . . Drone Launches . | . . . Drone Recoveries . | . . . Exploration | -11 -10 -10 ------------- Run | Yrd Mat Min Turns Passed 759 | 106 394 259 Spaces Moved 512 | 72 246 194 Core 4 | 4 . . Treads 12 | 7 4 1 Legs . | . . . Wheels 496 | 61 242 193 Hover . | . . . Flight . | . . . Fastest Speed 50 | 50 95 95 Average Speed 94 | 90 96 95 Slowest Speed 160 | 160 160 160 Overloaded Moves . | . . . Propulsion Burnouts . | . . . Robots Hopped . | . . . Potential Cave-ins . | . . . Cave-ins Triggered . | . . . Exploration Rate (%) 30 | 4 45 43 Regions Visited 2 Branch Regions 1 Pre-discovered Areas . | . . . Known Exits Taken . | . . . Unknown Exits Taken 2 | 1 1 . Scrap Searched 2 | . . 2 Spaces Dug . | . . . Terrain Destroyed . | . . . Melee . | . . . Projectile . | . . . AOE . | . . . Terrain Rammed . | . . . Walls Destroyed . | . . . Machines Disabled . | . . . Actions | -11 -10 -10 --------- Run | Yrd Mat Min Total 697 | 97 366 234 Wait 93 | . 75 18 Move 510 | 71 245 194 Hop . | . . . Pick Up 15 | 7 7 1 Fast Attach 10 | 8 2 . Attach 2 | . . 2 Detach 1 | 1 . . Swap 7 | . 6 1 Drop 11 | 2 8 1 Fire 48 | 8 23 17 Melee . | . . . Ram . | . . . Kick . | . . . Crush . | . . . Escape Stasis . | . . . Rewire . | . . . Trap . | . . . Miscellaneous . | . . . Route ------- -11/Scrapyard -10/Materials -10/Mines (discovered 1 exit: [Mat]) History --------- Turn | Location | Event 10 | -11/Scrapyard | Discovered new exit (range 14) 107 | -11/Scrapyard | Entered Materials 308 | -10/Materials | Build established: Mutant 406 | -10/Materials | Discovered new exit (range 16) 501 | -10/Materials | Entered Mines 569 | -10/Mines | Discovered new exit (range 14) 676 | -10/Mines | Found a hidden stash of uninstalled traps 698 | -10/Mines | Assembled infested the area 711 | -10/Mines | Core integrity fell below 50% 758 | -10/Mines | Core integrity fell below 20% 760 | -10/Mines | Destroyed by as-04954 with Assembled Heavy Rifle Last Messages --------------- 00688_ Dropped Assault Rifle. 00689_ Acquired Heavy Explosive Trap. 00692_ R-06 Scavenger collects Lgt. Nuclear Core. 00694_ Acquired 13 matter. 00698_ ALERT: Infestation in the mines, dispatching Demolisher response squad. 00704_ Searching scrap... 00704_ Found Med. Battery. 00704_ Found Huge Storage Unit. 00704_ Found 53 Matter. 00709_ C-30 ARC bursts open, deploying its payload. 00709_ D-53 Grenadier unfolds itself. 00719_ R-06 Scavenger collects Heat Sink. 00742_ T-07 Excavator destroyed. 00755_ Lgt. Treads destroyed. 00756_ Wheel destroyed. 00758_ Particle Gun destroyed. 00758_ System corrupted by crushing effect (+3). 00758_ Knocked back. 00759_ Assault Rifle destroyed. Map ----- +----------------------------------------------------+ | ??????????????????????????????????????????????? | | ??????????????????????????????????????????????? | | ??????????????????????????????????????????????? | | ??????????????????????????????????????????????? | | ??????????????????????????????????????????????? | | ??????????????????????????????????????????????? | | ??????????????????????????????????????????????? | | ??????????????????????????????????????????????? | | ??????????????????????????????????????????????? | | ??????????????????????????????????????????????? | | ??????????????????????????????????????????????? | | ??????????????????????????????????????????????? | | ??????????????????????????????????????????????? | | ??????????????????????????????????????????????? | | ??????????????????????????????????????????????? | | ??????????????????????????????????????????????? | | ??????????????????????????????????????????????? | | ??????????????????#####???????????????????????? | | ?????????????????## ????????????????????????? | | ?????????????????# ????????????????????????? | | ?????????????????# ????????????????????????? | | ?????????????????# ????????????????????????? | | ?????????????#???# #????????????????????????? | | ?????????????# ?## ##???????????????????????? | | ???????????###a##% ###?????????????????????? | | ???????????# a a @ ##????????????????????? | | ????????????# a a a #????????????????????? | | ????????????## a ##????????????????????? | | ?????????????## aaa#####?????????????????????? | | ??????????????#### #?????????????????????????? | | ???????????????? #????????????????????#????? | | ???????????????## #??????????????????? #????? | | ???????????????### #?????????????????##"#????? | | ??????????????## # #??????????####??? "%##???? | | ?????????????## #??????????# ??? " #???? | | ????????????## #??????????# #### #??# | | ??????????### ##????????### # ##### | | ????????### #?????????# | | ????????# # = ##??????#### ##### | | ????????# #???????# | | ????????# ###???????# | | ????????# #???????#### % ####### | | ????????# #???????# ! ##?????## | | ????????# #???????# ## ##???????? | | ????????# #??###### ###### ##????????? | | ????????## ####??# #??## ##?????????? | | ?????????## #?????# #### #### ##??????????? | | ??????????# #?????# #??# % ##?????????## | | ??????????# ##????# #?##%#### #?????????# | | ?????????## ##???# ### ##?## #????????## | +----------------------------------------------------+ Best States ------------- Heat Dissipation 25 Energy Generation 14 Energy Capacity 160 Matter Stores 300 Matter Capacity 300 Sight Range 16 Terrain Scan Density 10 Evasion (%) 44 Recoil Reduction 2 Item Schematics ----------------- None Robot Schematics ------------------ None Fabricated ------------ Nothing Repaired ---------- Nothing Alien Tech Used ----------------- None Achievements -------------- None Challenges ------------ None Game ------ Seed CompositeHardcellBlasthammer Manual? 0 Play Time 00:13:57 Cumulative 102.5 hours Start 2025.06.17 @ 22:07:58 End 2025.06.17 @ 22:21:02 Sessions 1 Manual Loads 0 Difficulty Rogue Special Mode None Game No. 41 Rogue 41 Adventurer 0 Explorer 0 Win Type - Total 4 Types 4/0/0/0/0/0/0/0/0/0 Lore% 43 Gallery% 45 Achievement% 46 Wizard Run 0 Options --------- Layout 0 ASCII 0 Keyboard 0 Movement Arrows Keybinds 0 Fullscreen 2 Font 18/Terminus Map View 76x50 Zoom Use 0% Tactical HUD 1 Map Filters NONE Filters NONE Steam 1 RUN: fb39e16c-f7ad-4df5-be0c-b5012063f979